Cogmind - Beta 16.1 @@@ ROGUE MODE // 2026.03.09 @ 18:54:41 Player: stevie364 Result: Destroyed by P-80 Master with Gamma Rifle Performance ------------- Evolutions (9) 4500 Regions Visited (17) 3400 Robots Destroyed (93) 465 Value Destroyed (3351) 3351 Prototype IDs (41) 820 Alien Tech Used (0) 0 Bonus (2730) 2730 TOTAL SCORE: 15266 Bonus ------- High Alert Combat Kills 167 Follower Combat Kills 763 Entered DSFs 500 Registered with UFD 300 Met Warlord at Base 500 MAIN.C Attacked Warlord 500 Cogmind --------- Core Integrity 0/1600 Matter 290/300 Energy 95/100 System Corruption 8% Temperature Cool (5) Movement Flying (20) Location -1/Access Parts ------- > --- POWER (1) -------- (None) > --- PROPULSION (7) --- Experimental Q-thruster > --- UTILITY (13) ----- (None) > --- WEAPON (4) ------- (None) > --- INVENTORY (5) ---- Micro Antimatter Reactor Impulse Thruster Array Heavy Disruptor Cannon Peak State ------------ > --- POWER ------------ Light Neutrino Core > --- PROPULSION ------- Cooled Nuclear Pulse Thruster Cooled Nuclear Pulse Thruster Cooled Nuclear Pulse Thruster Cooled Nuclear Pulse Thruster Cooled Nuclear Pulse Thruster Impulse Thruster Array > --- UTILITY ---------- Medium Storage Unit Enhanced Optical Array Advanced Signal Interpreter Improved Transmission Jammer Advanced Reaction Control System Centrium Medium Armor Plating Hacking Suite Hacking Suite Improved Hacking Suite System Mapper System Shield > --- WEAPON ----------- Compact Ion Cannon Compact Ion Cannon > --- INVENTORY -------- Light Neutrino Core Xenon Bombardment Thruster Cooled Nuclear Pulse Thruster Cooled Nuclear Pulse Thruster Advanced ECM Suite A0-MCA's Component Scanner Vortex Cannon Nova Cannon Micro-nuke Launcher [Rating: 132] Favorites ----------- Power Light Neutrino Core Engine Ion Engine Power Core Light Neutrino Core Reactor Cold Fusion Reactor Propulsion Cooled Nuclear Pulse Thruster Treads Light Treads Leg Carbon-fiber Leg Wheel Wheel Hover Unit Improved Hover Unit Flight Unit Cooled Nuclear Pulse Thruster Utility Hacking Suite Device Seismic Detector Storage Medium Storage Unit Processor Enhanced Optical Array Hackware Hacking Suite Protection Centrium Medium Armor Plating Weapon Compact Ion Cannon Energy Gun Quantum Rifle Energy Cannon Compact Ion Cannon Ballistic Gun Light Assault Rifle Ballistic Cannon Enhanced Gauss Cannon Launcher Rocket Array Special Weapon Junk Cannon Impact Weapon Powered Hammer Build | -11 -10 -10 -10 -8 -6 -5 -5 -5 -4 -4 -4 -4 -3 -3 -2 -2 -1 ------- Run | Yrd Mat Min Sub Scr Fac Fac Was Fac Fac Upp Upp War Pro Res Res DSF Acc Slots Evolved 18 | . . . . . 8 2 . . 2 . . . . 2 2 . 2 Power . | . . . . . . . . . . . . . . . . . . Propulsion 5 | . . . . . 4 . . . . . . . . 1 . . . Utility 11 | . . . . . 4 2 . . 2 . . . . 1 2 . . Weapon 2 | . . . . . . . . . . . . . . . . . 2 Parts Attached 163 | 7 3 7 . 4 43 33 5 16 3 1 1 13 1 11 . 9 6 Power 13 | 1 . 1 . . 3 4 1 1 1 . . . . 1 . . . Engine 4 | 1 . . . . 1 2 . . . . . . . . . . . Core 6 | . . 1 . . . 2 1 1 1 . . . . . . . . Reactor 3 | . . . . . 2 . . . . . . . . 1 . . . Propulsion 59 | 2 . 3 . 2 15 10 2 9 . . . 3 . 5 . 6 2 Treads 3 | 2 . . . . 1 . . . . . . . . . . . . Leg 3 | . . . . . 1 . . . . . . 1 . . . . 1 Wheel 5 | . . 1 . . . 4 . . . . . . . . . . . Hover 17 | . . . . 1 7 2 . . . . . 1 . . . 6 . Flight 31 | . . 2 . 1 6 4 2 9 . . . 1 . 5 . . 1 Utility 57 | 2 1 1 . . 14 12 2 6 2 1 . 8 1 2 . 3 2 Device 23 | 1 . 1 . . 4 4 . 3 1 1 . 3 1 . . 2 2 Storage 5 | 1 1 . . . 1 . . 1 . . . 1 . . . . . Processor 10 | . . . . . 5 4 . . . . . . . 1 . . . Hackware 9 | . . . . . 1 2 1 1 1 . . 1 . 1 . 1 . Protection 10 | . . . . . 3 2 1 1 . . . 3 . . . . . Artifact . | . . . . . . . . . . . . . . . . . . Weapon 34 | 2 2 2 . 2 11 7 . . . . 1 2 . 3 . . 2 Energy Gun 4 | . . . . . 3 1 . . . . . . . . . . . Energy Cannon 7 | . . . . . 1 3 . . . . . 1 . 2 . . . Ballistic Gun 14 | 2 2 1 . 1 6 2 . . . . . . . . . . . Ballistic Cannon 4 | . . . . . . 1 . . . . . 1 . . . . 2 Launcher 3 | . . 1 . . 1 . . . . . . . . 1 . . . Special Weapon 1 | . . . . 1 . . . . . . . . . . . . . Impact Weapon 1 | . . . . . . . . . . . 1 . . . . . . Slashing Weapon . | . . . . . . . . . . . . . . . . . . Piercing Weapon . | . . . . . . . . . . . . . . . . . . Special Melee Weapon . | . . . . . . . . . . . . . . . . . . Unidentified Prototypes 25 | . . . . 1 6 3 . 2 . . . 11 . 1 . . 1 Parts Lost 104 | . . 6 . . 32 23 . 2 . . . . 1 19 . 14 7 Power 8 | . . 1 . . 3 2 . . . . . . . 2 . . . Propulsion 44 | . . 2 . . 16 7 . 1 . . . . . 8 . 9 1 Utility 31 | . . 1 . . 7 6 . 1 . . . . 1 7 . 4 4 Weapon 21 | . . 2 . . 6 8 . . . . . . . 2 . 1 2 Highest Loss Streak 14 | . . 5 . . 8 6 . 1 . . . . 1 7 . 14 4 To Critical Strikes 3 | . . . . . 1 2 . . . . . . . . . . . Average Backups 8 | 2 10 14 15 14 6 3 4 5 8 9 10 9 8 8 2 1 2 Power . | . 1 1 1 . . . . . 1 1 1 1 1 . . . 1 Propulsion 2 | . 3 5 5 4 . . . . 2 3 3 2 2 2 1 1 1 Utility 3 | . 1 2 4 5 3 2 3 3 4 4 5 5 4 3 . . . Weapon 2 | . 3 5 5 3 2 . . . . . 1 1 1 2 1 . . Tool/Special . | . . . . . . . . . . . . . . . . . . Unused Backups 26 | . . . . 10 4 . . 6 1 1 . 3 . . . . 1 Power 3 | . . . . 2 1 . . . . . . . . . . . . Propulsion 1 | . . . . . . . . 1 . . . . . . . . . Utility 13 | . . . . 3 2 . . 3 1 1 . 3 . . . . . Weapon 9 | . . . . 5 1 . . 2 . . . . . . . . 1 Tool/Special . | . . . . . . . . . . . . . . . . . . Average Slot Usage (%) 86 | . 100 79 85 99 85 58 92 94 93 94 94 98 100 90 39 37 14 Engine 1 | . 14 4 . . . 1 1 . . . . . . . . . . Core 5 | . . 6 14 14 2 . 2 5 5 5 5 5 5 3 . . . Treads 2 | . 28 8 . . . . . . . . . . . . . . . Wheel 3 | . . 7 14 14 . 3 . . . . . . . . . . . Hover 3 | . . . . 11 8 1 . . . . . . . . . 6 . Flight 14 | . . . . 2 17 4 28 29 27 26 26 29 31 27 13 4 . Device 8 | . 14 10 14 14 6 2 . 2 8 10 10 9 14 8 . 1 2 Storage 6 | . 14 14 14 14 5 . . 1 5 5 5 5 5 3 . . . Processor 9 | . . . . . 13 22 24 20 10 10 10 10 10 9 13 13 8 Hackware 9 | . . . . . 5 8 17 13 19 21 21 25 21 21 8 6 1 Protection 2 | . . . . . 4 2 3 4 5 5 5 . . 3 . . . Energy Cannon 3 | . . . . . . 3 11 11 10 10 9 9 10 8 . 1 . Ballistic Gun 10 | . 28 27 28 27 9 1 . . . . . . . . . . . Peak Build Rating 132 | 7 8 9 9 23 62 70 95 99 110 110 110 118 114 132 66 95 36 Average Rating 58 | 5 7 7 9 13 43 42 90 94 106 109 109 113 112 123 66 63 24 On Entrance 57 | . 7 8 9 9 17 16 60 95 98 110 110 108 114 113 66 66 26 Avg Prop Armor Cover (%) 4 | . . . . 6 3 11 16 3 . . . 2 2 1 15 10 . Naked Turns 42 | . . . . . . . . . . . . . . . . . 42 Heaviest Build 44 | 13 30 30 28 33 42 24 23 34 37 37 37 38 33 44 8 40 14 Greatest Support 61 | 40 40 40 10 10 37 48 42 42 40 40 52 54 54 61 12 48 23 Greatest Overweight (x) 7 | . . 7 2 3 7 7 . 1 . . . . . 1 . 2 4 Average Overweight (x) . | . . 1 2 2 . . . . . . . . . . . . . Largest Inventory Capacity 20 | 8 15 15 15 15 20 5 5 10 10 10 10 10 10 10 5 5 5 Average Capacity 9 | 7 13 15 15 15 7 5 5 6 10 10 10 10 10 9 5 5 5 Most Carried 15 | 3 15 15 15 15 15 5 5 10 10 10 10 10 10 10 3 4 5 Average Carried 9 | 2 10 14 15 14 6 3 4 5 9 9 10 9 9 8 3 2 3 Final Capacity 15 | 8 15 15 15 15 5 5 5 10 10 10 10 10 10 5 5 5 5 Final Carried 15 | 3 15 15 15 15 5 4 5 10 10 10 10 10 9 3 3 3 5 Class Distribution -------------------- 40% | Mutant 14% | Wizard-Scout 13% | Hacker-Scout 10% | Scavenger-Mutant 8% | Hacker-Sprinter 5% | Scavenger-Sprinter 3% | Hacker-Mutant Dominant Class ---------------- Mutant | -10/Materials Mutant | -10/Mines Mutant | -10/Subcaves Mutant | -8/Scraptown Scavenger-Mutant | -6/Factory Mutant | -5/Factory Hacker-Sprinter | -5/Waste Hacker-Scout | -5/Factory Hacker-Scout | -4/Factory Hacker-Scout | -4/Upper Caves Hacker-Scout | -4/Upper Caves Wizard-Scout | -4/Warlord Hacker-Scout | -3/Proximity Caves Wizard-Scout | -3/Research Hacker-Mutant | -2/Research Hacker-Mutant | -2/DSF Mutant | -1/Access Resources | -11 -10 -10 -10 -8 -6 -5 -5 -5 -4 -4 -4 -4 -3 -3 -2 -2 -1 ----------- Run | Yrd Mat Min Sub Scr Fac Fac Was Fac Fac Upp Upp War Pro Res Res DSF Acc Matter Collected 3467 | 290 84 162 . 20 957 625 160 266 . 60 . 179 63 485 . 43 73 Remotely . | . . . . . . . . . . . . . . . . . . Salvage Created 4696 | 102 181 180 . . 1514 1351 169 368 . . . . . 789 . 42 . Parts 200 | 10 16 16 . . 81 29 . 5 . . . . . 42 . 1 . Haulers Intercepted 5 | . . . . . 2 1 . 2 . . . . . . . . . Recyclers Shooed 11 | . . . . . 1 6 . . . . . . . 3 . . 1 Parts Field Recycled . | . . . . . . . . . . . . . . . . . . Retrieved Matter . | . . . . . . . . . . . . . . . . . . Parts Self-Destructed 16 | . . . 4 . . . . . . . 12 . . . . . . Prevented . | . . . . . . . . . . . . . . . . . . Parts Restored . | . . . . . . . . . . . . . . . . . . Kills | -11 -10 -10 -10 -8 -6 -5 -5 -5 -4 -4 -4 -4 -3 -3 -2 -2 -1 ------- Run | Yrd Mat Min Sub Scr Fac Fac Was Fac Fac Upp Upp War Pro Res Res DSF Acc Combat Hostiles Destroyed 61 | . 8 5 . . 21 12 1 3 . . . . . 10 . 1 . Melee 1 | . . . . . . 1 . . . . . . . . . . . Guns 37 | . 8 4 . . 21 4 . . . . . . . . . . . Cannons 16 | . . . . . . 3 1 3 . . . . . 8 . 1 . AOE 7 | . . 1 . . . 4 . . . . . . . 2 . . . Classes Destroyed 16 | 2 2 1 . . 7 1 1 . . . . . . 1 . 1 . Worker 6 | . . . . . 6 . . . . . . . . . . . . Builder 1 | . . . . . 1 . . . . . . . . . . . . Tunneler 9 | 2 . 3 . . 1 1 . . . . . . . 2 . . . Hauler 5 | . . . . . 2 1 . 2 . . . . . . . . . Recycler 10 | 1 . . . . 1 6 . . . . . . . 2 . . . Operator 1 | . . . . . . . . . . . . . . 1 . . . Swarmer 15 | . 6 2 . . 3 . . . . . . . . 4 . . . Cutter 2 | . . . . . 2 . . . . . . . . . . . . Grunt 15 | . 2 2 . . 6 2 . 2 . . . . . 1 . . . Brawler 1 | . . . . . 1 . . . . . . . . . . . . Sentry 3 | . . . . . . 2 . 1 . . . . . . . . . Demolisher 1 | . . 1 . . . . . . . . . . . . . . . Specialist 1 | . . . . . . . . . . . . . . . . 1 . Hunter 8 | . . . . . 4 4 . . . . . . . . . . . Programmer 14 | . . . . . 5 4 . . . . . . . 5 . . . Compactor 1 | . . . . . . . 1 . . . . . . . . . . Best Kill Streak 6 | 2 4 4 . . 6 5 1 1 . . . . . 3 . 1 . Combat Bots Only 5 | . 4 3 . . 5 3 1 1 . . . . . 3 . 1 . Max Kills in Single Turn 2 | 1 1 1 . . 2 1 1 1 . . . . . 2 . 1 . Gunslinging . | . . . . . . . . . . . . . . . . . . Exploded 2 | . . 1 . . . 1 . . . . . . . 2 . . . Melee 1 | . . . . . . 1 . . . . . . . . . . . Uniques/NPCs Destroyed . | . . . . . . . . . . . . . . . . . . Combat | -11 -10 -10 -10 -8 -6 -5 -5 -5 -4 -4 -4 -4 -3 -3 -2 -2 -1 -------- Run | Yrd Mat Min Sub Scr Fac Fac Was Fac Fac Upp Upp War Pro Res Res DSF Acc Hostile Shots Fired 966 | . 36 30 . . 290 171 . 13 . . 5 2 9 203 . 58 149 Missed 319 | . 14 5 . . 73 56 . 4 . . 3 1 5 93 . 20 45 Hits 647 | . 22 25 . . 217 115 . 9 . . 2 1 4 110 . 38 104 Melee 4 | . . . . . 4 . . . . . . . . . . . . Projectile 643 | . 22 25 . . 213 115 . 9 . . 2 1 4 110 . 38 104 AOE 16 | . . 13 . . 1 . . . . . . 1 . . . . 1 Critical Strikes 32 | . . 1 . . 7 3 . 1 . . . . . 11 . 1 8 Part Disruptions 2 | . . . . . . . . . . . . . . 2 . . . Damage Taken 14110 | . 262 750 . . 3518 2711 . 252 . . 30 47 77 2453 . 1550 2460 Core 4938 | . 21 223 . . 636 917 . 19 . . . 23 21 497 . 975 1606 Absorbed by Shields 140 | . . . . . . 117 . . . . . . . . . 23 . Redirected to Shielding 135 | . . . . . 13 122 . . . . . . . . . . . Ignored by Resistances 35 | . . . . . . . . . . . . . . . . . 35 Regen/Repaired (Parts) 341 | . . . . 167 79 . 65 25 . . . 5 . . . . . Core Remaining (%) 46 | 100 . . . 2 25 . . 6 . . . . 96 61 . 32 . Volleys Fired 415 | 10 21 19 . . 95 75 4 25 . 5 9 5 63 63 . 4 17 Largest 2 | 2 2 2 . . 2 2 2 2 . 1 1 1 1 2 . 1 1 Hottest 180 | 40 40 40 . . 122 122 180 180 . 90 90 90 90 180 . 50 58 Shots Fired 596 | 20 42 35 . . 170 102 7 44 . 5 9 5 63 73 . 4 17 Gun 324 | 20 42 32 . . 165 65 . . . . . . . . . . . Cannon 261 | . . . . . 5 31 7 44 . 5 9 5 63 71 . 4 17 Launcher 11 | . . 3 . . . 6 . . . . . . . 2 . . . Special . | . . . . . . . . . . . . . . . . . . Kinetic 260 | 20 42 32 . . 104 44 . . . . . 1 . . . . 17 Thermal 312 | . . . . . 66 51 7 44 . 5 9 3 63 64 . . . Explosive 11 | . . 3 . . . 6 . . . . . . . 2 . . . Electromagnetic 1 | . . . . . . 1 . . . . . . . . . . . Entropic 12 | . . . . . . . . . . . . 1 . 7 . 4 . Robot Hit Streak 28 | 4 7 7 . . 23 28 2 14 . . . 12 1 18 . 2 4 Robot Miss Streak 5 | 2 2 4 . . 4 2 2 2 . . . . 5 3 . 2 3 Penetration Max 1 | . . . . . 1 . . . . . . . . . . . . Secondary Targets 8 | . 2 2 . . 4 . . . . . . . . . . . . Max Gunslinging Chain 1 | . 1 1 . . 1 . . . . . . . . . . . . Shots Hit Robots 349 | 12 23 18 . . 109 85 4 31 . . . 4 1 50 . 2 10 Core Hits 204 | 6 16 14 . . 56 60 2 9 . . . . . 22 . 2 17 Critical Kills 1 | . . . . . . . . . . . . . . 1 . . . Critical Parts Destroyed 1 | . . . . . 1 . . . . . . . . . . . . Critical Strikes 23 | . . . . . 1 17 . . . . . . . 3 . 1 1 Burn 10 | . . . . . . 10 . . . . . . . . . . . Meltdown 1 | . . . . . . . . . . . . . . 1 . . . Destroy 1 | . . . . . 1 . . . . . . . . . . . . Blast 8 | . . . . . . 7 . . . . . . . . . . 1 Sunder 3 | . . . . . . . . . . . . . . 2 . 1 . Melee Attacks 6 | . . . . . . . . . . . . 6 . . . . . Impact 6 | . . . . . . . . . . . . 6 . . . . . Slashing . | . . . . . . . . . . . . . . . . . . Piercing . | . . . . . . . . . . . . . . . . . . Sneak Attacks . | . . . . . . . . . . . . . . . . . . Combat Hostiles . | . . . . . . . . . . . . . . . . . . Follow-up Attacks . | . . . . . . . . . . . . . . . . . . Damage Inflicted 10062 | 104 244 303 . . 2623 2971 138 845 . . . 145 29 1981 . 152 527 Guns 4371 | 104 211 206 . . 2613 1237 . . . . . . . . . . . Cannons 4191 | . . . . . . 775 138 845 . . . 145 29 1712 . 141 406 Explosions 1309 | . . 96 . . . 944 . . . . . . . 269 . . . Melee . | . . . . . . . . . . . . . . . . . . Ramming 191 | . 33 1 . . 10 15 . . . . . . . . . 11 121 Kinetic 3463 | 104 211 206 . . 1438 1037 . . . . . 61 . . . . 406 Thermal 4577 | . . . . . 1175 955 138 845 . . . 84 29 1351 . . . Explosive 1309 | . . 96 . . . 944 . . . . . . . 269 . . . Electromagnetic 20 | . . . . . . 20 . . . . . . . . . . . Impact . | . . . . . . . . . . . . . . . . . . Slashing . | . . . . . . . . . . . . . . . . . . Piercing . | . . . . . . . . . . . . . . . . . . Entropic 502 | . . . . . . . . . . . . . . 361 . 141 . Highest Corruption 17 | . 1 3 3 . 17 13 13 14 . . . . . 10 . 3 8 Average Corruption 9 | . 1 2 3 . 14 11 13 13 . . . . . 4 . 2 6 Corruption Purged . | . . . . . . . . . . . . . . . . . . Corruption Blocked . | . . . . . . . . . . . . . . . . . . Effects 141 | . 2 4 1 . 55 19 13 36 . . . . . 9 . . 2 Message Errors 26 | . 1 2 1 . 10 2 3 4 . . . . . 2 . . 1 Matter Fused 29 | . 1 1 . . 13 3 . 8 . . . . . 3 . . . Heat Flow Errors 21 | . . 1 . . 7 3 3 6 . . . . . 1 . . . Energy Discharges 12 | . . . . . 7 3 1 1 . . . . . . . . . Parts Rejected 3 | . . . . . . . 2 . . . . . . 1 . . . Parts Fused 1 | . . . . . 1 . . . . . . . . . . . . Data Loss (minor) 11 | . . . . . 5 . 1 4 . . . . . . . . 1 Data Loss (major) 6 | . . . . . 1 3 . 2 . . . . . . . . . Misfires 6 | . . . . . 3 1 . 2 . . . . . . . . . Alerts 3 | . . . . . 3 . . . . . . . . . . . . Misdirections 15 | . . . . . 2 4 2 6 . . . . . 1 . . . Weapon Failures 8 | . . . . . 3 . 1 3 . . . . . 1 . . . Overload Shots . | . . . . . . . . . . . . . . . . . . Overflow Damage 174 | . . . . . . 62 . . . . . . . 112 . . . Projectiles 174 | . . . . . . 62 . . . . . . . 112 . . . Explosions . | . . . . . . . . . . . . . . . . . . Melee . | . . . . . . . . . . . . . . . . . . Knockbacks 12 | . . . . . . 4 . . . . . . . . . . 8 Impact 3 | . . . . . . . . . . . . . . . . . 3 Kinetic 7 | . . . . . . 3 . . . . . . . . . . 4 Secondary 2 | . . . . . . 1 . . . . . . . . . . 1 Self-Inflicted Damage 157 | . . . . . . 95 . . . . . . . . . 5 57 Shots 3 | . . . . . . 3 . . . . . . . . . . . Rammed 51 | . 5 1 . . 17 1 . . . . . . . . . 1 26 Targets Rammed 51 | . 5 1 . . 17 1 . . . . . . . . . 1 26 Kicked . | . . . . . . . . . . . . . . . . . . Crushed . | . . . . . . . . . . . . . . . . . . Highest Temperature 450 | . 18 103 . . 383 207 343 450 . 165 301 40 344 422 . . 4 Average Temperature 111 | . 9 43 . . 91 47 146 145 . 84 140 16 118 127 . . 4 Received Heat Transfer 969 | . 57 54 . . 414 117 . 72 . . . 12 18 108 . . 117 Effects 26 | . . . . . 1 . 3 11 . . . . 1 10 . . . Shutdowns 7 | . . . . . . . . 3 . . . . 1 3 . . . Energy Bleed 2 | . . . . . 1 . . . . . . . . 1 . . . Interference 9 | . . . . . . . 1 7 . . . . . 1 . . . Matter Decay 1 | . . . . . . . . . . . . . . 1 . . . Short Circuit 2 | . . . . . . . 1 . . . . . . 1 . . . Damage (minor) 4 | . . . . . . . 1 . . . . . . 3 . . . Damage (major) 1 | . . . . . . . . 1 . . . . . . . . . Siege Activations . | . . . . . . . . . . . . . . . . . . Martial Activations . | . . . . . . . . . . . . . . . . . . Shielding Activations . | . . . . . . . . . . . . . . . . . . Robots Disrupted . | . . . . . . . . . . . . . . . . . . Combat Hostiles . | . . . . . . . . . . . . . . . . . . Robots Corrupted . | . . . . . . . . . . . . . . . . . . Combat Hostiles . | . . . . . . . . . . . . . . . . . . Parts Fried . | . . . . . . . . . . . . . . . . . . Impact Corruptions . | . . . . . . . . . . . . . . . . . . Robots Melted 1 | . . . . . . . . . . . . . . 1 . . . Combat Hostiles . | . . . . . . . . . . . . . . . . . . Parts Melted 17 | . . . . . 3 5 . . . . . . . 9 . . . Heat Transferred 7749 | . . . . . 1480 3087 185 1147 . . . 111 37 1702 . . . Parts Sabotaged . | . . . . . . . . . . . . . . . . . . Parts Stolen . | . . . . . . . . . . . . . . . . . . Parts Stripped . | . . . . . . . . . . . . . . . . . . Power Chain Reactions . | . . . . . . . . . . . . . . . . . . Alert | -11 -10 -10 -10 -8 -6 -5 -5 -5 -4 -4 -4 -4 -3 -3 -2 -2 -1 ------- Run | Yrd Mat Min Sub Scr Fac Fac Was Fac Fac Upp Upp War Pro Res Res DSF Acc Maximum Alert Level 3 | . . . . . 2 1 . 3 1 . . . . 3 . . . Low Security (%) 62 | 100 100 100 . . 64 92 100 24 . . . . . 3 100 100 100 Level 1 17 | . . . . . 35 7 . 17 100 . . . . 19 . . . Level 2 11 | . . . . . . . . 47 . . . . . 39 . . . Level 3 8 | . . . . . . . . 10 . . . . . 37 . . . Level 4 . | . . . . . . . . . . . . . . . . . . Level 5 . | . . . . . . . . . . . . . . . . . . High Security . | . . . . . . . . . . . . . . . . . . Max Security . | . . . . . . . . . . . . . . . . . . Peak Influence 915 | 10 110 99 . . 400 247 89 721 280 . . . . 915 165 123 63 Initial 900 | . . 1 . . . 154 79 20 261 . . . . 900 164 123 14 Average 208 | . 38 31 . . 104 102 61 426 258 . . . . 575 160 79 17 Influence Increases 5221 | 15 225 174 . . 861 756 100 1161 49 . 75 45 45 1518 21 41 135 Destroy 0b10 Robot/C 1520 | . 160 100 . . 420 240 . 380 . . . . . 200 . 20 . Destroy 0b10 Robot/NC 170 | 15 . 15 . . 55 40 . 20 . . . . . 25 . . . Destroy Leader 382 | . 30 30 . . 124 62 . 96 . . . . . 40 . . . Allied During Kill 318 | . . . . . . . . 318 . . . . . . . . . Successful Hack 156 | . 5 . . . 33 38 . 10 4 . . . . 45 21 . . Disable Machine 75 | . . 15 . . 15 . . 15 . . . . . 30 . . . Destroy Structure 470 | . . 14 . . 19 106 100 142 . . . . . 68 . 6 15 Advance Influence 900 | . . . . . . . . . . . . . . 900 . . . Partial Spotted 270 | . . . . . 60 75 . 75 . . . . . 60 . . . Lose Combat Pursuer 960 | . 30 . . . 135 195 . 105 45 . 75 45 45 150 . 15 120 Influence Decreases 5221 | 15 220 179 . . 544 845 299 657 302 154 125 82 84 1226 148 182 159 Entered New Map 1021 | . . 4 . . . 163 149 9 272 104 25 76 39 . 128 42 10 Time Decay 2373 | 15 220 145 . . 287 452 110 278 30 50 100 6 45 526 20 . 89 Search Patrol Dispatched 500 | . . . . . . . . . . . . . . 500 . . . Lost Part 917 | . . 30 . . 247 230 . 20 . . . . . 190 . 140 60 Lost Ally 260 | . . . . . 10 . 40 200 . . . . . 10 . . . Purge Threat 150 | . . . . . . . . 150 . . . . . . . . . Squads Dispatched 37 | . 1 . . . 12 4 . 11 1 . . . . 6 . 1 1 Investigation 7 | . . . . . 3 1 . 1 1 . . . . 1 . . . Extermination 11 | . . . . . 4 2 . 1 . . . . . 3 . . 1 Reinforcement 13 | . 1 . . . 5 1 . 3 . . . . . 2 . 1 . Assault . | . . . . . . . . . . . . . . . . . . Garrison 6 | . . . . . . . . 6 . . . . . . . . . Intercept . | . . . . . . . . . . . . . . . . . . Searches Triggered 5 | . . . . . . . . . . . . . . 5 . . . Construction Impeded 3 | . . . . . 1 . . 2 . . . . . . . . . Haulers Reinforced 4 | . . . . . 1 1 . 1 . . . . . 1 . . . Active Scanning Responses . | . . . . . . . . . . . . . . . . . . Cargo Convoy Interrupts 1 | . . . . . 1 . . . . . . . . . . . . Stealth | -11 -10 -10 -10 -8 -6 -5 -5 -5 -4 -4 -4 -4 -3 -3 -2 -2 -1 --------- Run | Yrd Mat Min Sub Scr Fac Fac Was Fac Fac Upp Upp War Pro Res Res DSF Acc Distress Signals 11 | . 2 . . . 4 1 . 2 . . . 1 . . . . 1 Communications Jammed 5 | . . . . . . . . . . . . . 4 1 . . . Distress Signals 1 | . . . . . . . . . . . . . . 1 . . . Times Spotted 230 | . 17 9 . . 42 30 8 26 3 . 5 14 13 35 . 11 17 Peak Tracking Total 14 | . 6 3 . . 6 8 3 6 4 . 5 14 3 14 . 9 7 Tactical Retreats 33 | . 2 . . . 5 5 1 3 1 . 1 1 4 5 . 1 4 ECM-based Alert Blocks 2 | . . . . . . . . . . . . . 1 1 . . . Traps | -11 -10 -10 -10 -8 -6 -5 -5 -5 -4 -4 -4 -4 -3 -3 -2 -2 -1 ------- Run | Yrd Mat Min Sub Scr Fac Fac Was Fac Fac Upp Upp War Pro Res Res DSF Acc Traps Triggered 14 | . 1 . . . 3 4 . . 1 . . . . 2 1 1 1 Indirectly . | . . . . . . . . . . . . . . . . . . Trap Hack Attempts . | . . . . . . . . . . . . . . . . . . Triggered . | . . . . . . . . . . . . . . . . . . Disarmed . | . . . . . . . . . . . . . . . . . . Reprogrammed . | . . . . . . . . . . . . . . . . . . Reused . | . . . . . . . . . . . . . . . . . . Traps Extracted . | . . . . . . . . . . . . . . . . . . Installed . | . . . . . . . . . . . . . . . . . . Triggered . | . . . . . . . . . . . . . . . . . . Machines | -11 -10 -10 -10 -8 -6 -5 -5 -5 -4 -4 -4 -4 -3 -3 -2 -2 -1 ---------- Run | Yrd Mat Min Sub Scr Fac Fac Was Fac Fac Upp Upp War Pro Res Res DSF Acc Machines Disabled 6 | . . 1 . . 1 . . 1 . . . 1 . 2 . . . Max in Single Turn 1 | . . 1 . . 1 . . . . . . 1 . 1 . . . Garrison Access 3 | . . . . . 1 . . . . . . . . 2 . . . Machines Repaired . | . . . . . . . . . . . . . . . . . . Machines Dismantled . | . . . . . . . . . . . . . . . . . . Machines Sabotaged . | . . . . . . . . . . . . . . . . . . Overloaded Fab Kills . | . . . . . . . . . . . . . . . . . . Hacking | -11 -10 -10 -10 -8 -6 -5 -5 -5 -4 -4 -4 -4 -3 -3 -2 -2 -1 --------- Run | Yrd Mat Min Sub Scr Fac Fac Was Fac Fac Upp Upp War Pro Res Res DSF Acc Machines Accessed 56 | . 4 . . 4 14 5 . 8 2 . . 5 1 10 2 . 1 Terminals 35 | . 4 . . . 8 5 . 5 2 . . . 1 7 2 . 1 Fabricators 1 | . . . . . 1 . . . . . . . . . . . . Repair Stations 1 | . . . . . 1 . . . . . . . . . . . . Recycling Units 2 | . . . . . 2 . . . . . . . . . . . . Scanalyzers 3 | . . . . . 1 . . 1 . . . . . 1 . . . Garrison Access 5 | . . . . . 1 . . 2 . . . . . 2 . . . Total Hacks 147 | . 10 . . 18 36 15 . 20 4 . . 12 1 27 3 . 1 Successful 88 | . 4 . . 18 21 6 . 7 3 . . 12 1 13 3 . . Failed 59 | . 6 . . . 15 9 . 13 1 . . . . 14 . . 1 Catastrophic 11 | . 1 . . . 4 2 . 4 . . . . . . . . . Database Lockouts . | . . . . . . . . . . . . . . . . . . Manual 47 | . 3 . . . 11 8 . 9 3 . . . . 13 . . . Terminals 85 | . 10 . . . 18 15 . 12 4 . . . 1 21 3 . 1 Fabricators 1 | . . . . . 1 . . . . . . . . . . . . Repair Stations 7 | . . . . . 7 . . . . . . . . . . . . Recycling Units 6 | . . . . . 6 . . . . . . . . . . . . Scanalyzers 8 | . . . . . 2 . . 3 . . . . . 3 . . . Garrison Access 10 | . . . . . 2 . . 5 . . . . . 3 . . . Terminal Hacks 61 | . 4 . . 18 5 6 . 3 2 . . 12 1 7 3 . . Record 37 | . . . . 17 3 1 . . . . . 11 1 3 1 . . Part Schematic 1 | . . . . . . . . . . . . . . . 1 . . Prototype ID Bank 2 | . 1 . . . 1 . . . . . . . . . . . . Open Door 1 | . . . . . . . . . . . . 1 . . . . . Open DSF 1 | . . . . . . . . . . . . . . . 1 . . Level Access Points 1 | . . . . . . . . . . . . . . 1 . . . Branch Access Points 3 | . . . . . . 1 . . 1 . . . . 1 . . . Machine Index 1 | . . . . . . . . . . . . . . 1 . . . Terminal Index 3 | . . . . . 1 1 . . 1 . . . . . . . . Alert Level 1 | . . . . . . 1 . . . . . . . . . . . Unreport Threat 1 | . . . . . . . . 1 . . . . . . . . . Maintenance Status 4 | . 1 . . . . 1 . 1 . . . . . 1 . . . Transport Status 1 | . . . . . . . . 1 . . . . . . . . . Reinforcement Status 1 | . . . . . . 1 . . . . . . . . . . . Registered Components 1 | . 1 . . . . . . . . . . . . . . . . Zone Layout 1 | . 1 . . . . . . . . . . . . . . . . Proto ID Catalog 1 | . . . . 1 . . . . . . . . . . . . . Fabricator Hacks 1 | . . . . . 1 . . . . . . . . . . . . Build 1 | . . . . . 1 . . . . . . . . . . . . Repair Station Hacks 7 | . . . . . 7 . . . . . . . . . . . . Scan Component 4 | . . . . . 4 . . . . . . . . . . . . Repair 3 | . . . . . 3 . . . . . . . . . . . . Recycling Unit Hacks 3 | . . . . . 3 . . . . . . . . . . . . Process 1 | . . . . . 1 . . . . . . . . . . . . Retrieve Matter 2 | . . . . . 2 . . . . . . . . . . . . Scanalyzer 4 | . . . . . 1 . . 2 . . . . . 1 . . . Insert Component 3 | . . . . . . . . 2 . . . . . 1 . . . Retrieve Study 1 | . . . . . 1 . . . . . . . . . . . . Garrison Access Hacks 3 | . . . . . 1 . . . . . . . . 2 . . . Seal Access 3 | . . . . . 1 . . . . . . . . 2 . . . Unauthorized Hacks 9 | . . . . . 3 . . 2 1 . . . . 3 . . . Terminals 9 | . . . . . 3 . . 2 1 . . . . 3 . . . Assimilate 2 | . . . . . 1 . . . . . . . . 1 . . . Botnet 7 | . . . . . 2 . . 2 1 . . . . 2 . . . Fabricators . | . . . . . . . . . . . . . . . . . . Repair Stations . | . . . . . . . . . . . . . . . . . . Recycling Units . | . . . . . . . . . . . . . . . . . . Scanalyzers . | . . . . . . . . . . . . . . . . . . Garrison Access . | . . . . . . . . . . . . . . . . . . Data Cores Recovered . | . . . . . . . . . . . . . . . . . . Used . | . . . . . . . . . . . . . . . . . . Hacking Detections 40 | . 4 . . . 13 5 . 7 1 . . . . 8 1 . 1 Full Trace Events 6 | . . . . . 3 1 . 1 . . . . . 1 . . . Feedback Events 3 | . . . . . 1 . . 2 . . . . . . . . . Corruption 2 | . . . . . 1 . . 1 . . . . . . . . . Hackware Fried 1 | . . . . . . . . 1 . . . . . . . . . Feedback Blocked . | . . . . . . . . . . . . . . . . . . Robot Schematics Acquired . | . . . . . . . . . . . . . . . . . . Robots Built . | . . . . . . . . . . . . . . . . . . Authchips . | . . . . . . . . . . . . . . . . . . Time . | . . . . . . . . . . . . . . . . . . Total Robot Build Rating . | . . . . . . . . . . . . . . . . . . Part Schematics Acquired 1 | . . . . . . . . . . . . . . . 1 . . Parts Built 2 | . . . . . 2 . . . . . . . . . . . . Authchips . | . . . . . . . . . . . . . . . . . . Time 128 | . . . . . 128 . . . . . . . . . . . . Total Part Build Rating 16 | . . . . . 16 . . . . . . . . . . . . Part Studies Acquired 1 | . . . . . 1 . . . . . . . . . . . . Parts Repaired 3 | . . . . . 3 . . . . . . . . . . . . Time 108 | . . . . . 108 . . . . . . . . . . . . Parts Recycled . | . . . . . . . . . . . . . . . . . . Recycled Matter 11 | . . . . . 11 . . . . . . . . . . . . Retrieved Matter . | . . . . . . . . . . . . . . . . . . Retrieved Components . | . . . . . . . . . . . . . . . . . . Parts Scanalyzed 2 | . . . . . . . . 1 . . . . . 1 . . . Part Schematics Acquired . | . . . . . . . . . . . . . . . . . . Parts Damaged 1 | . . . . . . . . 1 . . . . . . . . . Bothacking | -11 -10 -10 -10 -8 -6 -5 -5 -5 -4 -4 -4 -4 -3 -3 -2 -2 -1 ------------ Run | Yrd Mat Min Sub Scr Fac Fac Was Fac Fac Upp Upp War Pro Res Res DSF Acc Used RIF Installer . | . . . . . . . . . . . . . . . . . . Robots Hacked . | . . . . . . . . . . . . . . . . . . Non-combat . | . . . . . . . . . . . . . . . . . . Combat . | . . . . . . . . . . . . . . . . . . Robot Hacks Applied . | . . . . . . . . . . . . . . . . . . Relay Couplers Released . | . . . . . . . . . . . . . . . . . . Fabnet Peak Effective % . | . . . . . . . . . . . . . . . . . . Robots Rewired 6 | . . . . . . . . . . . . 6 . . . . . Allies Hacked . | . . . . . . . . . . . . . . . . . . Hacks Repelled . | . . . . . . . . . . . . . . . . . . Allies | -11 -10 -10 -10 -8 -6 -5 -5 -5 -4 -4 -4 -4 -3 -3 -2 -2 -1 -------- Run | Yrd Mat Min Sub Scr Fac Fac Was Fac Fac Upp Upp War Pro Res Res DSF Acc Total Allies 28 | . . 1 . . 1 . 19 . . . . 6 . 1 . . . Largest Group 19 | . . 1 . . 1 . 19 12 . . . 6 . 1 . . . Highest-Rated Group 669 | . . 31 . . 10 . 669 469 . . . 321 . 45 . . . Highest-Rated Ally 64 | . . 31 . . 10 . 50 50 . . . 64 . 45 . . . Initial UFD Resources 37 | . . . . . 24 26 26 26 28 28 28 28 30 30 33 33 37 Total Orders . | . . . . . . . . . . . . . . . . . . Ally Attacks 218 | . . 2 . . . . 121 90 . . . 5 . . . . . Total Damage 7861 | . . 41 . . . . 4586 3027 . . . 207 . . . . . Kills 28 | . . . . . . . 10 18 . . . . . . . . . Allies Corrupted 1 | . . . . . . . . 1 . . . . . . . . . Allies Melted 1 | . . . . . . . . . . . . 1 . . . . . Intel | -11 -10 -10 -10 -8 -6 -5 -5 -5 -4 -4 -4 -4 -3 -3 -2 -2 -1 ------- Run | Yrd Mat Min Sub Scr Fac Fac Was Fac Fac Upp Upp War Pro Res Res DSF Acc Active Infowar (turns) 10118 | 11 794 333 92 2134 1767 402 226 493 75 113 214 1001 577 1472 53 97 264 Optics 6531 | . . . . . 1761 259 226 419 75 113 214 1001 577 1472 53 97 264 Sensors 3983 | . . . . . 649 . . 354 75 113 214 1001 577 1000 . . . IFF 6 | . . . . . . . . . . . . . . . . 6 . Terrain 281 | . . . . . 172 109 . . . . . . . . . . . Seismic 4038 | 11 794 333 92 2134 674 . . . . . . . . . . . . T.N.C. 359 | . . . . . . 293 66 . . . . . . . . . . Jamming 75 | . . . . . . . . . . . . . 59 16 . . . ECM 75 | . . . . . 14 . . . . . . . 21 40 . . . Robot Analysis Total . | . . . . . . . . . . . . . . . . . . Derelict Logs Recovered 4 | . . 1 . . . . . . . 2 1 . . . . . . Drone Launches . | . . . . . . . . . . . . . . . . . . Drone Recoveries . | . . . . . . . . . . . . . . . . . . Exploration | -11 -10 -10 -10 -8 -6 -5 -5 -5 -4 -4 -4 -4 -3 -3 -2 -2 -1 ------------- Run | Yrd Mat Min Sub Scr Fac Fac Was Fac Fac Upp Upp War Pro Res Res DSF Acc Turns Passed 11442 | 136 794 443 92 2134 1976 1126 226 601 75 113 214 1001 577 1472 53 97 312 Spaces Moved 14528 | 63 433 277 84 1820 2084 1075 353 1321 282 382 651 1864 1064 2227 111 89 348 Core 531 | 3 . 12 . . 17 140 . . . . . . . . . 31 328 Treads 568 | 60 433 72 . . 3 . . . . . . . . . . . . Legs 138 | . . . . . 134 . . . . . . . . . . . 4 Wheels 2405 | . . 193 84 1820 . 308 . . . . . . . . . . . Hover 927 | . . . . . 883 . . . . . . . . . . 44 . Flight 9959 | . . . . . 1047 627 353 1321 282 382 651 1864 1064 2227 111 14 16 Fastest Speed 5 | 50 160 110 110 110 24 29 27 20 20 25 12 5 5 5 34 32 20 Average Speed 51 | 154 160 135 110 114 54 69 28 27 23 25 24 23 20 24 34 68 55 Slowest Speed 400 | 160 160 400 110 125 400 400 32 110 25 25 25 25 23 96 34 150 250 Overloaded Moves 225 | . . . . . . . . . . . 33 1 39 152 . . . Propulsion Burnouts 1 | . . . . . . . . . . . . . . 1 . . . Robots Hopped 40 | . . . . . 10 . . 11 . 2 1 2 4 9 . . 1 Potential Cave-ins . | . . . . . . . . . . . . . . . . . . Cave-ins Triggered 1 | . . 1 . . . . . . . . . . . . . . . Exploration Rate (%) 48 | 4 69 45 5 89 40 27 96 27 8 58 74 93 90 35 3 90 14 Regions Visited 17 Branch Regions 7 Pre-discovered Areas . | . . . . . . . . . . . . . . . . . . Known Exits Taken 9 | . . . . . 1 . . 1 1 1 1 1 1 1 1 . . Unknown Exits Taken 5 | 1 1 1 1 1 . . . . . . . . . . . . . Scrap Searched 17 | . . 1 . 6 . . . . . 3 2 . 5 . . . . Spaces Dug 34 | . . . . . 3 1 . . . 1 1 . 7 19 . 1 1 Terrain Destroyed 224 | . . 18 . . 19 78 1 6 . 3 8 . 38 46 . 2 5 Melee . | . . . . . . . . . . . . . . . . . . Projectile 97 | . . . . . 19 7 1 6 . 3 8 . 38 8 . 2 5 AOE 127 | . . 18 . . . 71 . . . . . . . 38 . . . Terrain Rammed . | . . . . . . . . . . . . . . . . . . Walls Destroyed . | . . . . . . . . . . . . . . . . . . Machines Disabled . | . . . . . . . . . . . . . . . . . . Actions | -11 -10 -10 -10 -8 -6 -5 -5 -5 -4 -4 -4 -4 -3 -3 -2 -2 -1 --------- Run | Yrd Mat Min Sub Scr Fac Fac Was Fac Fac Upp Upp War Pro Res Res DSF Acc Total 17768 | 82 495 312 83 1879 2705 1348 467 1505 290 391 697 2406 1356 3063 125 116 448 Wait 2324 | . 25 . . 25 417 150 97 120 . . 36 473 229 702 . 4 46 Move 14436 | 62 432 276 83 1819 2064 1075 352 1300 281 377 648 1859 1055 2209 110 88 346 Hop 36 | . . . . . 9 . . 9 . 2 1 2 4 8 . . 1 Pick Up 87 | 3 9 4 . 13 18 1 3 14 2 3 1 6 . 6 . . 4 Fast Attach 112 | 7 . 2 . 4 26 31 5 4 2 . . 11 . 6 . 9 5 Attach 56 | . . 4 . 1 20 5 . 2 1 . . 3 1 15 . 2 2 Detach 21 | . . 1 . . 3 3 1 1 1 . . . . 9 . 2 . Swap 73 | . 3 3 . 1 16 1 2 14 1 2 1 14 4 11 . . . Drop 86 | . . 2 . 16 20 2 3 16 2 2 1 17 . 4 . . 1 Fire 415 | 10 21 19 . . 95 75 4 25 . 5 9 5 63 63 . 4 17 Melee 6 | . . . . . . . . . . . . 6 . . . . . Ram 46 | . . 1 . . 17 1 . . . . . . . . . 1 26 Kick . | . . . . . . . . . . . . . . . . . . Crush 5 | . 5 . . . . . . . . . . . . . . . . Escape Stasis 55 | . . . . . . 4 . . . . . . . 30 15 6 . Rewire 10 | . . . . . . . . . . . . 10 . . . . . Trap . | . . . . . . . . . . . . . . . . . . Miscellaneous . | . . . . . . . . . . . . . . . . . . Route ------- -11/Scrapyard -10/Materials (discovered 2 exits: [*Mat] / [*Min]) -10/Mines -10/Subcaves -8/Scraptown (discovered 2 exits: *Fac x2) -6/Factory -5/Factory (discovered 2 exits: *Upp x2) -5/Waste -5/Factory -4/Factory (discovered 2 exits: *Upp x2) -4/Upper Caves -4/Upper Caves (discovered 2 exits: *Res / *War) -4/Warlord -3/Proximity Caves -3/Research (discovered 6 exits: *Res x3 / Arm / Qua x2) -2/Research -2/DSF -1/Access History --------- Turn | Location | Event 14 | -11/Scrapyard | Discovered new exit (range 16) 137 | -11/Scrapyard | Entered Materials 273 | -10/Materials | Discovered new exit (range 7) 307 | -10/Materials | Build established: Mutant 557 | -10/Materials | Discovered new exit (range 16) 931 | -10/Materials | Entered Mines 942 | -10/Mines | Received a Mining Laser from a helpful Derelict 1014 | -10/Mines | Assembled infested the area 1071 | -10/Mines | Core integrity fell below 50% 1087 | -10/Mines | Met 8R-AWN 1101 | -10/Mines | Lost 5 parts (1p2n2w) 1118 | -10/Mines | Core integrity fell below 20% 1121 | -10/Mines | Crushed by falling debris 1290 | -10/Mines | Found DCF Scrap (13 items) 1315 | -10/Mines | Learned Materials stockpile data 1361 | -10/Mines | Discovered new exit (range 12) 1374 | -10/Mines | Entered Subcaves 1375 | -10/Subcaves | Approached by a straggling Scientist 1466 | -10/Subcaves | Scientist uncovered a shortcut to Scraptown 1466 | -10/Subcaves | Entered Scraptown 1466 | -8/Scraptown | System corruption cleaned by C-Scrubber 1495 | -8/Scraptown | Received an X-ray algorithm 1710 | -8/Scraptown | Discovered new exit (range 5) 1761 | -8/Scraptown | Visited Spacefarers 1827 | -8/Scraptown | Visited Cave Peace 1863 | -8/Scraptown | Visited Symbiants 1908 | -8/Scraptown | Visited Assassins FH 1941 | -8/Scraptown | Visited CPS Storage 1965 | -8/Scraptown | Visited UFD Registry 1983 | -8/Scraptown | Visited Comm Corps 2261 | -8/Scraptown | Visited CR-KLE's Repair Center 2268 | -8/Scraptown | CR-KLE repaired 6 parts 2317 | -8/Scraptown | Registered with UFD as "Wrenchcore" 2339 | -8/Scraptown | Visited Science Guys 2382 | -8/Scraptown | Visited Curators Association 2450 | -8/Scraptown | Visited Scrapoid Research Area 2681 | -8/Scraptown | Visited Scrap Suit Storage 2736 | -8/Scraptown | Visited Observation Area 2783 | -8/Scraptown | Visited A0-MCA Data Center 2790 | -8/Scraptown | Given a B rating by A0-MCA 2795 | -8/Scraptown | Found A0-MCA's Component Scanner 2816 | -8/Scraptown | Visited Abandonware Association 2831 | -8/Scraptown | Learned abandonware demo "SHUTEYE.EXE" 2831 | -8/Scraptown | Learned abandonware demo "TRNCOAT.EXE" 2861 | -8/Scraptown | Visited DA-N13 Charitable Foundation 2871 | -8/Scraptown | Found DCF Scrap (31 items) 2962 | -8/Scraptown | Visited Junk Cannon Lab 2977 | -8/Scraptown | Found Prototype Special Weapon 2977 | -8/Scraptown | Identified Junk Cannon 3174 | -8/Scraptown | Discovered new exit (range 3) 3600 | -8/Scraptown | Entered Factory 3600 | -6/Factory | Evolved 8 slots: Propulsion x4, Utility x4 3751 | -6/Factory | Fabricated Quantum Rifle (x2) 3855 | -6/Factory | Repaired VTOL Module 3882 | -6/Factory | Repaired Flight Unit+ 3934 | -6/Factory | Repaired Hyp. Gauss Rifle 4177 | -6/Factory | Build established: Scavenger-Sprinter 4300 | -6/Factory | System corruption reached 10% 4354 | -6/Factory | Lost 8 parts (1p4n2u1w) 4655 | -6/Factory | Build established: Scavenger-Mutant 4755 | -6/Factory | Discovered new exit (range 8) 4758 | -6/Factory | Identified exit to Factory 4867 | -6/Factory | Cargo convoy interrupted 4899 | -6/Factory | Lost 5 parts (4n1u) 4955 | -6/Factory | Core integrity fell below 50% 4988 | -6/Factory | Lost 8 parts (1p3n1u3w) 5260 | -6/Factory | Found Prototype Launcher 5260 | -6/Factory | Identified Rocket Array 5576 | -6/Factory | Entered another Factory area 5576 | -5/Factory | Evolved 2 slots: Utility x2 5604 | -5/Factory | Lost 8 parts (1p3n3u1w) 5853 | -5/Factory | Build established: Mutant 6124 | -5/Factory | Lost 3 parts (1n1u1w) 6189 | -5/Factory | Core integrity fell below 50% 6220 | -5/Factory | Lost 5 parts (1p1n1u2w) 6372 | -5/Factory | System corruption reached 10% 6413 | -5/Factory | Lost 6 parts (1n2u3w) 6591 | -5/Factory | Spotted B-75 Beast 6593 | -5/Factory | Core integrity fell below 20% 6601 | -5/Factory | Identified exit to Upper Caves 6613 | -5/Factory | Lost 3 parts (2n1u) 6647 | -5/Factory | Build established: Hacker-Sprinter 6702 | -5/Factory | Sucked down chute 6702 | -5/Factory | Entered Waste 6703 | -5/Waste | Met a frightened Derelict 6713 | -5/Waste | Spotted C-40 Crusher 6713 | -5/Waste | Spotted C-40 Crusher 6713 | -5/Waste | Spotted C-40 Crusher 6723 | -5/Waste | Warlord forces began an assault 6786 | -5/Waste | Spotted C-40 Crusher 6788 | -5/Waste | Allies destroyed C-40 Crusher 6793 | -5/Waste | Allies destroyed C-40 Crusher 6797 | -5/Waste | Allies destroyed C-40 Crusher 6798 | -5/Waste | Spotted C-40 Crusher 6801 | -5/Waste | Spotted C-40 Crusher 6803 | -5/Waste | Allies destroyed C-40 Crusher 6811 | -5/Waste | Destroyed C-40 Crusher 6820 | -5/Waste | Lost 6 allies 6867 | -5/Waste | Discovered new exit (range 22) 6878 | -5/Waste | Identified exit to Factory 6928 | -5/Waste | Entered Factory 6928 | -5/Factory | Accompanied by 12 allies 7036 | -5/Factory | Garrison activated, responded to threat 7084 | -5/Factory | Adv. Hacking Suite fried by hacking feedback 7156 | -5/Factory | Garrison activated, responded to threat 7287 | -5/Factory | Lost 3 allies 7466 | -5/Factory | Ran an X-ray algorithm 7483 | -5/Factory | Build established: Hacker-Scout 7528 | -5/Factory | Discovered new exit (range 8) 7529 | -5/Factory | Identified exit to Factory 7529 | -5/Factory | Entered another Factory area 7529 | -4/Factory | Evolved 2 slots: Utility x2 7583 | -4/Factory | Identified exit to Upper Caves 7604 | -4/Factory | Entered Upper Caves 7615 | -4/Upper Caves | Spotted B-86 Titan 7646 | -4/Upper Caves | Learned 8 Research zone layouts 7672 | -4/Upper Caves | Learned Research trap positions 7682 | -4/Upper Caves | Discovered new exit (range 21) 7700 | -4/Upper Caves | Identified exit to Upper Caves 7717 | -4/Upper Caves | Entered another Upper Caves area 7722 | -4/Upper Caves | Discovered new exit (range 5) 7723 | -4/Upper Caves | Encountered a Warlord checkpoint 7723 | -4/Upper Caves | Identified exit to Research 7781 | -4/Upper Caves | Spotted B-86 Titan 7884 | -4/Upper Caves | Learned Research emergency access door positions 7889 | -4/Upper Caves | Discovered new exit (range 17) 7893 | -4/Upper Caves | Identified exit to Warlord 7931 | -4/Upper Caves | Entered Warlord 7955 | -4/Warlord | Received a Watcher feed algorithm from an ecstatic Tinkerer 8090 | -4/Warlord | Visited the Vortex Lab 8092 | -4/Warlord | Found Prototype Energy Cannon 8092 | -4/Warlord | Identified Vortex Cannon 8102 | -4/Warlord | Warlord's base attacked by MAIN.C 8111 | -4/Warlord | Found Prototype Hackware 8111 | -4/Warlord | Identified System Mapper 8114 | -4/Warlord | Found Prototype Device 8114 | -4/Warlord | Identified Exp. Phase Shifter 8121 | -4/Warlord | Found Prototype Device 8121 | -4/Warlord | Identified Exp. Focal Shield 8159 | -4/Warlord | Rebuked by Warlord 8194 | -4/Warlord | Found Vortex Cannon 8396 | -4/Warlord | Lost 3 allies 8452 | -4/Warlord | Warlord forces counterattacked 8488 | -4/Warlord | Build established: Wizard-Scout 8757 | -4/Warlord | Lost 3 allies 8777 | -4/Warlord | Warlord base infiltrated, sounded retreat 8778 | -4/Warlord | Enhanced Grunt warped into view 8778 | -4/Warlord | Enhanced Grunt warped into view 8778 | -4/Warlord | Enhanced Grunt warped into view 8778 | -4/Warlord | Enhanced Demolisher warped into view 8778 | -4/Warlord | Enhanced Demolisher warped into view 8778 | -4/Warlord | Enhanced Demolisher warped into view 8832 | -4/Warlord | Spotted Executioner 8838 | -4/Warlord | Spotted B-86 Titan 8843 | -4/Warlord | Spotted B-90 Cyclops 8851 | -4/Warlord | Found Prototype Ballistic Cannon 8851 | -4/Warlord | Identified Hvy. Autocannon 8868 | -4/Warlord | Found Prototype Device 8868 | -4/Warlord | Identified Exp. Shock Absorption System 8893 | -4/Warlord | Discovered new exit (range 14) 8902 | -4/Warlord | Spotted Striker 8902 | -4/Warlord | Spotted Striker 8914 | -4/Warlord | Identified exit to Proximity Caves 8932 | -4/Warlord | Entered Proximity Caves 8937 | -3/Proximity Caves | Spotter reported a threat 8940 | -3/Proximity Caves | Spotter reported a threat 8949 | -3/Proximity Caves | Lost 4 allies 8990 | -3/Proximity Caves | Spotter reported a threat 8992 | -3/Proximity Caves | Spotter reported a threat 9168 | -3/Proximity Caves | Spotter reported a threat 9242 | -3/Proximity Caves | Spotter reported a threat 9306 | -3/Proximity Caves | Spotter reported a threat 9323 | -3/Proximity Caves | Build established: Hacker-Scout 9469 | -3/Proximity Caves | Spotter reported a threat 9506 | -3/Proximity Caves | Discovered exit to Research (range 7) 9509 | -3/Proximity Caves | Entered Research 9509 | -3/Research | Evolved 2 slots: Propulsion x1, Utility x1 9511 | -3/Research | Loaded intel: 58 trap records 9585 | -3/Research | Identified exit to Armory 9585 | -3/Research | Identified exit to Quarantine 9759 | -3/Research | Search patrols dispatched 10006 | -3/Research | Build established: Wizard-Scout 10009 | -3/Research | Search patrols dispatched 10259 | -3/Research | Search patrols dispatched 10509 | -3/Research | Search patrols dispatched 10629 | -3/Research | Spotted B-86 Titan 10634 | -3/Research | Spotted B-86 Titan 10759 | -3/Research | Search patrols dispatched 10856 | -3/Research | System corruption reached 10% 10889 | -3/Research | Lost 7 parts (1p3n2u1w) 10947 | -3/Research | Lost 6 parts (3n3u) 10947 | -3/Research | Identified exit to Research 10981 | -3/Research | Entered another Research area 10981 | -2/Research | Evolved 2 slots: Utility x2 10989 | -2/Research | Identified exit to DSF 11002 | -2/Research | Lost 3 parts (1p1n1w) 11034 | -2/Research | Entered DSF 11054 | -2/DSF | Additional patrols routed to DSF 11119 | -2/DSF | Discovered new exit (range 17) 11124 | -2/DSF | Core integrity fell below 50% 11131 | -2/DSF | Entered Access 11131 | -1/Access | Evolved 2 slots: Weapon x2 11154 | -1/Access | Lost 14 parts (9n4u1w) 11399 | -1/Access | Core integrity fell below 50% 11400 | -1/Access | Build established: Mutant 11414 | -1/Access | Core integrity fell below 20% 11428 | -1/Access | Lost 4 parts (1n2u1w) 11443 | -1/Access | Destroyed by P-80 Master with Gamma Rifle Last Messages --------------- 11413_ Penetrated by Slug. 11413_ Slammed into H-88 Terminator. 11414_ Extracted 2 matter. 11414_ Penetrated by Slug. 11416_ Slammed into R-10 Processor. 11418_ Penetrated by Slug. 11418_ R-10 Processor destroyed. 11419_ System corrupted: Component data lost. 11419_ Acquired 48 matter. 11421_ Acquired Hvy. Disruptor Cannon. 11421_ Slug penetrates Wall. 11426_ Slammed into K-01 Serf. 11426_ K-01 Serf sends out distress signal. 11430_ Slammed into K-01 Serf. 11438_ Slug penetrates Wall. 11438_ Terminal disabled. 11439_ Acquired Prototype Flight Unit. 11439_ Identified Exp. Q-thruster. 11440_ Slug penetrates Wall. [Achievement: Achiever] Map ----- +----------------------------------------------------+ | ?????????????????????????????????????????????????? | | ?????????????????????????????????????????????????? | | ?????????????????????????????????????????????????? | | ?????????????????????????????????????????????????? | | ?????????????????????????????????????????????????? | | ?????????????????????????????????????????????????? | | ?????????????????????????????????????????????????? | | ?????????????????????????????????????????????????? | | ?????????????????????????????????????????????????? | | ?????????????????????????????????????????????????? | | ???????????????????????????????????#########?????? | | ???????????????????????????????????# #?????? | | ???????????????????????????????????# %####### | | ???????????????????????????????????# %+==%% | | ???????????????????????????????????# %"%*#!## | | ???????????????????????????????????#^ ! #### #? | | ???????????????????????????????????# #??# #? | | ???????????????????????????????????# !! #??# #? | | ???????????????????????????????????# !! #??# #? | | ???????????????????????????????????#########??#*#? | | ?????????????????????#???????????????########## #? | | ?????????????????????# ??????????????# #%#? | | ???????????????????### ##??????####### #!#? | | ???????????????????# ####### # "" #!#? | | ???????????????????# * k k p# "T ] # #? | | ???????????????????+ " @ p """ # #? | | ???????????????????# # # #? | | ???????????????????# ####### # # #? | | ???????????????????######??????####### # #? | | ???????????????????????????########### #%#? | | ???????????????????????????# #+######## ## | | ???????????????????????????# + % | | ???????????????????????????# ############# | | ???????????????????????????# ! ????????????? | | ???????????????????????????#########?????????????? | | ?????????????????????????????????????????????????? | | | | | | | | | | | | | | | | | | | | | | | | | | | | | +----------------------------------------------------+ Best States ------------- Heat Dissipation 52 Energy Generation 19 Energy Capacity 770 Matter Stores 300 Matter Capacity 300 Sight Range 22 Robot Scan Range 15 Terrain Scan Range 20 Terrain Scan Density 10 ECM Strength 2 Jamming Range 14 Armor Coverage 600 Resistance: KI 20 Resistance: EX 75 Power Shielding 33 Propulsion Shielding 66 Weapon Cycling 20 Phase Shifting 5 Evasion (%) 78 Targeting Accuracy 16 Target Analysis 5 Recoil Reduction 2 Offensive Hacking 52 Defensive Hacking 12 Item Schematics ----------------- Gui. Micro-nuke Launcher | -2/Research | Hacked Robot Schematics ------------------ None Fabricated ------------ Quantum Rifle | x2 | -6/Factory | Preloaded Repaired ---------- VTOL Module | 56% | -6/Factory Flight Unit | 35% | -6/Factory Hyp. Gauss Rifle | 60% | -6/Factory Studied --------- Flight Unit | -6/Factory | Hacked Alien Tech Used ----------------- None Achievements -------------- Achiever Charge!!! Construction Begets Destruction Into The Breach It's Just You Jackpot Just What I Needed Nice Directions, Buddy Resistances Are Futile Speed Demon Supersonic Suspicious By Nature Whoosh! Wiki Contributor Window Shopping Challenges ------------ None Game ------ Seed CloakFortressDesublimator Manual? 0 Play Time 03:38:49 Cumulative 17.9 hours Start 2026.03.02 @ 19:29:34 End 2026.03.09 @ 18:54:41 Sessions 12 Manual Loads 0 Difficulty Rogue Special Mode None Game No. 8 Rogue 8 Adventurer 0 Explorer 0 Win Type - Total 0 Types 0/0/0/0/0/0/0/0/0/0 Lore% 33 Gallery% 23 Achievement% 27 Wizard Run 0 Options --------- Layout 1 ASCII 0 Keyboard 1 Movement Arrows Keybinds 0 Fullscreen 2 Font 24/Smallcaps Map View 50x35 Zoom Use 0% Tactical HUD 1 Map Filters NONE Filters NONE Steam 1 RUN: f09ec39c-56ba-46e0-a2e9-7c21dc75b5ac